Cogmind - Beta 17.1 @@@ ROGUE MODE // 2026.09.22 @ 14:23:58 Player: Caluan Result: Destroyed by G-47 Trooper with Particle Gun Performance ------------- Evolutions (2) 1000 Regions Visited (3) 600 Robots Destroyed (34) 170 Value Destroyed (955) 955 Prototype IDs (1) 20 Alien Tech Used (0) 0 Bonus (5350) 5350 TOTAL SCORE: 8095 Bonus ------- Prayed to X0-1V1 5000 Major X0-1V1 Interference 350 Cogmind --------- Core Integrity 0/450 Matter 521/700 Energy 97/300 System Corruption 0% Temperature Cool (9) Movement Core (500) Ox9 Location -8/Materials Parts ------- > --- POWER (1) -------- (None) > --- PROPULSION (4) --- (None) > --- UTILITY (4) ------ Large Storage Unit X0-1V1's Piety Tracker > --- WEAPON (3) ------- Enhanced Flamer Axe Axe > --- INVENTORY (15) --- High-capacity Storage Unit Improved Terrain Scanner Axe Scrap Shield Fragment (48) Peak State ------------ > --- POWER ------------ Light Nuclear Core > --- PROPULSION ------- Aluminum Leg Aluminum Leg Aluminum Leg Carbon-fiber Leg > --- UTILITY ---------- Large Storage Unit Trap Extractor X0-1V1's Piety Tracker > --- WEAPON ----------- Axe Axe Axe > --- INVENTORY -------- Aluminum Leg Aluminum Leg Improved Aluminum Leg Improved Aluminum Leg Carbon-fiber Leg High-capacity Storage Unit Improved Terrain Scanner Enhanced Flamer Axe Axe Scrap Shield Fragment [Rating: 36] Favorites ----------- Power Ion Engine Engine Ion Engine Power Core Light Nuclear Core Propulsion Light Treads Treads Light Treads Leg Aluminum Leg Utility Large Storage Unit Device Improved Terrain Scanner Storage Large Storage Unit Protection Light Armor Plating Weapon Assault Rifle Energy Gun Subdweller Laser Energy Cannon Subdweller Beam Cannon Ballistic Gun Assault Rifle Ballistic Cannon Assault Cannon Special Weapon Enhanced Flamer Slashing Weapon Axe Build | -11 -10 -10 -8 ------- Run | Yrd Mat Sub Mat Slots Evolved 4 | . . . 4 Power . | . . . . Propulsion 1 | . . . 1 Utility 2 | . . . 2 Weapon 1 | . . . 1 Parts Attached 38 | 7 7 6 18 Power 5 | 1 1 1 2 Engine 4 | 1 1 1 1 Core 1 | . . . 1 Reactor . | . . . . Propulsion 13 | 2 2 2 7 Treads 3 | 2 . 1 . Leg 10 | . 2 1 7 Wheel . | . . . . Hover . | . . . . Flight . | . . . . Utility 8 | 2 3 1 2 Device 4 | 1 1 1 1 Storage 3 | 1 2 . . Processor . | . . . . Hackware . | . . . . Protection 1 | . . . 1 Artifact . | . . . . Weapon 12 | 2 1 2 7 Energy Gun 1 | . . 1 . Energy Cannon 1 | . . 1 . Ballistic Gun 3 | 2 1 . . Ballistic Cannon 1 | . . . 1 Launcher . | . . . . Special Weapon 1 | . . . 1 Impact Weapon . | . . . . Slashing Weapon 5 | . . . 5 Piercing Weapon . | . . . . Special Melee Weapon . | . . . . Unidentified Prototypes 1 | . 1 . . Parts Lost 23 | . . 6 17 Power 4 | . . 1 3 Propulsion 11 | . . 2 9 Utility 4 | . . 1 3 Weapon 4 | . . 2 2 Highest Loss Streak 13 | . . 5 13 To Critical Strikes . | . . . . Average Backups 7 | 2 7 7 8 Power . | . 1 . . Propulsion 5 | 1 6 4 3 Utility 1 | . . 2 2 Weapon . | . . . 2 Tool/Special . | . . . . Unused Backups . | . . . . Power . | . . . . Propulsion . | . . . . Utility . | . . . . Weapon . | . . . . Tool/Special . | . . . . Average Slot Usage (%) 91 | . 95 90 80 Engine 12 | . 14 13 4 Treads 18 | . 27 9 . Leg 10 | . . 19 29 Device 10 | . 10 12 8 Storage 12 | . 14 13 8 Energy Gun 2 | . . 10 1 Energy Cannon 1 | . . 3 1 Ballistic Gun 17 | . 28 7 . Slashing Weapon 3 | . . . 19 Peak Build Rating 36 | 9 20 23 36 Average Rating 14 | 5 8 19 29 On Entrance 13 | . 9 20 23 Avg Prop Armor Cover (%) . | . . . . Naked Turns . | . . . . Heaviest Build 50 | 13 50 36 42 Greatest Support 48 | 40 40 40 48 Greatest Overweight (x) 2 | . 1 1 2 Average Overweight (x) . | . . . . Largest Inventory Capacity 20 | 8 20 15 20 Average Capacity 15 | 6 17 15 15 Most Carried 13 | 4 10 11 13 Average Carried 7 | 2 7 8 9 Final Capacity 15 | 8 15 15 15 Final Carried 10 | 3 10 7 4 Class Distribution -------------------- 85% | Mutant 12% | Scavenger-Mutant Dominant Class ---------------- Mutant | -10/Materials Mutant | -10/Subcaves Scavenger-Mutant | -8/Materials Resources | -11 -10 -10 -8 ----------- Run | Yrd Mat Sub Mat Matter Collected 1030 | 279 276 109 366 Remotely . | . . . . Salvage Created 1413 | 129 618 127 539 Parts 81 | 6 39 5 31 Haulers Intercepted 2 | . 1 . 1 Recyclers Shooed 3 | 1 2 . . Parts Field Recycled . | . . . . Retrieved Matter . | . . . . Parts Self-Destructed 9 | . . 9 . Prevented . | . . . . Parts Restored . | . . . . Kills | -11 -10 -10 -8 ------- Run | Yrd Mat Sub Mat Combat Hostiles Destroyed 26 | . 12 3 11 Melee 9 | . . . 9 Guns 16 | . 12 3 1 Classes Destroyed 9 | 2 4 1 2 Builder 1 | . 1 . . Tunneler 2 | 2 . . . Hauler 2 | . 1 . 1 Recycler 3 | 1 2 . . Swarmer 5 | . 3 . 2 Grunt 16 | . 9 2 5 Sentry 3 | . . . 3 Hunter 1 | . . . 1 Subdweller 1 | . . 1 . Best Kill Streak 4 | 3 4 2 2 Combat Bots Only 4 | . 4 2 2 Max Kills in Single Turn 2 | 1 1 1 2 Gunslinging . | . . . . Exploded . | . . . . Melee 2 | . . . 2 Uniques/NPCs Destroyed . | . . . . Combat | -11 -10 -10 -8 -------- Run | Yrd Mat Sub Mat Hostile Shots Fired 207 | . 49 69 89 Missed 59 | . 14 21 24 Hits 148 | . 35 48 65 Projectile 148 | . 35 48 65 Critical Strikes 7 | . . . 7 Damage Taken 2794 | . 385 785 1624 Core 668 | . 42 162 464 Absorbed by Shields . | . . . . Core Remaining (%) 59 | 100 . 18 . Volleys Fired 79 | 4 30 30 15 Largest 3 | 2 2 2 3 Hottest 177 | 40 40 140 177 Shots Fired 130 | 8 60 45 17 Gun 112 | 8 60 43 1 Cannon 4 | . . 2 2 Launcher . | . . . . Special 14 | . . . 14 Kinetic 92 | 8 60 23 1 Thermal 38 | . . 22 16 Explosive . | . . . . Electromagnetic . | . . . . Robot Hit Streak 23 | 5 14 12 23 Robot Miss Streak 2 | . 2 2 . Penetration Max . | . . . . Secondary Targets 3 | . 3 . . Max Gunslinging Chain 1 | . 1 . . Shots Hit Robots 127 | 5 45 28 49 Core Hits 51 | 4 22 6 19 Critical Kills 1 | . 1 . . Critical Parts Destroyed . | . . . . Critical Strikes 7 | . 1 . 6 Burn 1 | . . . 1 Destroy 1 | . 1 . . Sever 5 | . . . 5 Melee Attacks 45 | . . . 45 Impact . | . . . . Slashing 45 | . . . 45 Piercing . | . . . . Sneak Attacks 2 | . . . 2 Combat Hostiles . | . . . . Follow-up Attacks 14 | . . . 14 Damage Inflicted 2448 | 65 592 444 1347 Guns 1087 | 63 560 444 20 Cannons . | . . . . Explosions . | . . . . Melee 1168 | . . . 1168 Ramming 34 | 2 32 . . Kinetic 844 | 63 560 221 . Thermal 402 | . . 223 179 Explosive . | . . . . Electromagnetic . | . . . . Impact . | . . . . Slashing 1168 | . . . 1168 Piercing . | . . . . Highest Corruption . | . . . . Average Corruption . | . . . . Corruption Purged . | . . . . Corruption Blocked . | . . . . Overload Shots . | . . . . Overflow Damage 59 | . . . 59 Projectiles . | . . . . Explosions . | . . . . Melee 59 | . . . 59 Knockbacks . | . . . . Impact . | . . . . Kinetic . | . . . . Secondary . | . . . . Self-Inflicted Damage . | . . . . Shots . | . . . . Rammed 6 | 1 5 . . Targets Rammed 8 | 1 7 . . Kicked . | . . . . Crushed 2 | . 2 . . Highest Temperature 99 | . 16 47 99 Average Temperature 21 | . 8 22 34 Received Heat Transfer 780 | . 180 294 306 Siege Activations . | . . . . Martial Activations . | . . . . Shielding Activations . | . . . . Robots Disrupted 1 | . . . 1 Combat Hostiles 1 | . . . 1 Robots Corrupted . | . . . . Combat Hostiles . | . . . . Parts Fried . | . . . . Impact Corruptions . | . . . . Robots Melted 1 | . . . 1 Combat Hostiles 1 | . . . 1 Parts Melted 1 | . . . 1 Heat Transferred 1580 | . . 275 1305 Parts Sabotaged . | . . . . Parts Stolen . | . . . . Parts Stripped . | . . . . Power Chain Reactions . | . . . . Alert | -11 -10 -10 -8 ------- Run | Yrd Mat Sub Mat Maximum Alert Level . | . . . . Low Security (%) 100 | 100 100 . 100 Level 1 . | . . . . Level 2 . | . . . . Level 3 . | . . . . Level 4 . | . . . . Level 5 . | . . . . High Security . | . . . . Max Security . | . . . . Peak Influence 174 | 10 174 . 91 Initial . | . . . . Average 34 | . 39 . 23 Influence Increases 853 | 15 425 40 373 Destroy 0b10 Robot/C 500 | . 240 40 220 Destroy 0b10 Robot/NC 40 | 15 20 . 5 Destroy Leader 134 | . 62 . 72 Successful Hack 13 | . 13 . . Destroy Structure 1 | . . . 1 Lose Combat Pursuer 165 | . 90 . 75 Influence Decreases 809 | 15 377 88 329 Entered New Map 24 | . . 24 . Time Decay 641 | 15 377 64 185 Lost Part 144 | . . . 144 Squads Dispatched 5 | . 4 . 1 Investigation 2 | . 1 . 1 Extermination . | . . . . Reinforcement 3 | . 3 . . Assault . | . . . . Garrison . | . . . . Intercept . | . . . . Searches Triggered . | . . . . Construction Impeded . | . . . . Haulers Reinforced . | . . . . Active Scanning Responses . | . . . . Cargo Convoy Interrupts . | . . . . Stealth | -11 -10 -10 -8 --------- Run | Yrd Mat Sub Mat Distress Signals 4 | . 1 . 3 Communications Jammed . | . . . . Distress Signals . | . . . . Times Spotted 57 | . 22 7 28 Peak Tracking Total 6 | . 5 4 6 Tactical Retreats 11 | . 6 . 5 Traps | -11 -10 -10 -8 ------- Run | Yrd Mat Sub Mat Traps Triggered 3 | . 2 . 1 Indirectly . | . . . . Trap Hack Attempts . | . . . . Triggered . | . . . . Disarmed . | . . . . Reprogrammed . | . . . . Reused . | . . . . Traps Extracted . | . . . . Installed . | . . . . Triggered . | . . . . Machines | -11 -10 -10 -8 ---------- Run | Yrd Mat Sub Mat Machines Disabled . | . . . . Max in Single Turn . | . . . . Machines Repaired . | . . . . Machines Dismantled . | . . . . Machines Sabotaged . | . . . . Overloaded Fab Kills . | . . . . Hacking | -11 -10 -10 -8 --------- Run | Yrd Mat Sub Mat Machines Accessed 5 | . 5 . . Terminals 5 | . 5 . . Fabricators . | . . . . Repair Stations . | . . . . Recycling Units . | . . . . Scanalyzers . | . . . . Garrison Access . | . . . . Total Hacks 14 | . 14 . . Successful 4 | . 4 . . Failed 10 | . 10 . . Catastrophic 2 | . 2 . . Database Lockouts . | . . . . Manual 18 | . 18 . . Terminals 14 | . 14 . . Fabricators . | . . . . Repair Stations . | . . . . Recycling Units . | . . . . Scanalyzers . | . . . . Garrison Access . | . . . . Terminal Hacks . | . . . . Fabricator Hacks . | . . . . Repair Station Hacks . | . . . . Recycling Unit Hacks . | . . . . Scanalyzer . | . . . . Garrison Access Hacks . | . . . . Unauthorized Hacks 4 | . 4 . . Terminals 4 | . 4 . . Botnet 4 | . 4 . . Fabricators . | . . . . Repair Stations . | . . . . Recycling Units . | . . . . Scanalyzers . | . . . . Garrison Access . | . . . . Data Cores Recovered . | . . . . Used . | . . . . Hacking Detections 4 | . 4 . . Full Trace Events . | . . . . Feedback Events . | . . . . Feedback Blocked . | . . . . Robot Schematics Acquired . | . . . . Robots Built . | . . . . Authchips . | . . . . Time . | . . . . Total Robot Build Rating . | . . . . Part Schematics Acquired . | . . . . Parts Built . | . . . . Authchips . | . . . . Time . | . . . . Total Part Build Rating . | . . . . Part Studies Acquired . | . . . . Parts Repaired . | . . . . Time . | . . . . Parts Recycled . | . . . . Recycled Matter . | . . . . Retrieved Matter . | . . . . Retrieved Components . | . . . . Parts Scanalyzed . | . . . . Part Schematics Acquired . | . . . . Parts Damaged . | . . . . Bothacking | -11 -10 -10 -8 ------------ Run | Yrd Mat Sub Mat Used RIF Installer . | . . . . Robots Hacked . | . . . . Non-combat . | . . . . Combat . | . . . . Robot Hacks Applied . | . . . . Relay Couplers Released . | . . . . Fabnet Peak Effective % . | . . . . Robots Rewired . | . . . . Allies Hacked . | . . . . Hacks Repelled . | . . . . Allies | -11 -10 -10 -8 -------- Run | Yrd Mat Sub Mat Total Allies . | . . . . Largest Group . | . . . . Highest-Rated Group . | . . . . Highest-Rated Ally . | . . . . Total Orders . | . . . . Ally Attacks . | . . . . Total Damage . | . . . . Kills . | . . . . Allies Corrupted . | . . . . Allies Melted . | . . . . X0-1V1 Amusement Gains 90 | . 15 10 65 Average Entertainment 19 | . 15 15 23 Good Acts 10 | . . 1 9 Bad Acts 4 | . . 2 2 Intel | -11 -10 -10 -8 ------- Run | Yrd Mat Sub Mat Active Infowar (turns) 1260 | 14 1246 . . Terrain 1260 | 14 1246 . . Robot Analysis Total . | . . . . Derelict Logs Recovered 1 | . . 1 . Drone Launches . | . . . . Drone Recoveries . | . . . . Exploration | -11 -10 -10 -8 ------------- Run | Yrd Mat Sub Mat Turns Passed 3074 | 117 1719 692 546 Spaces Moved 1348 | 62 743 320 223 Core 11 | 11 . . . Treads 891 | 51 737 103 . Legs 446 | . 6 217 223 Wheels . | . . . . Hover . | . . . . Flight . | . . . . Fastest Speed 50 | 50 160 160 120 Average Speed 192 | 140 212 181 154 Slowest Speed 260 | 160 240 240 260 Overloaded Moves . | . . . . Propulsion Burnouts . | . . . . Robots Hopped . | . . . . Potential Cave-ins . | . . . . Cave-ins Triggered . | . . . . Exploration Rate (%) 38 | 4 98 27 26 Regions Visited 3 Branch Regions 1 Pre-discovered Areas 2 | . . 2 . Known Exits Taken . | . . . . Unknown Exits Taken 3 | 1 1 1 . Scrap Searched . | . . . . Spaces Dug . | . . . . Terrain Destroyed 2 | . . . 2 Melee . | . . . . Projectile 2 | . . . 2 AOE . | . . . . Terrain Rammed . | . . . . Walls Destroyed . | . . . . Machines Disabled . | . . . . Actions | -11 -10 -10 -8 --------- Run | Yrd Mat Sub Mat Total 1626 | 83 817 386 340 Wait 71 | . 10 23 38 Move 1345 | 61 742 319 223 Hop . | . . . . Pick Up 37 | 10 11 5 11 Fast Attach 5 | . 2 . 3 Attach 29 | 7 3 8 11 Detach 2 | . 1 . 1 Swap 11 | . 6 . 5 Drop 10 | . 5 1 4 Fire 79 | 4 30 30 15 Melee 29 | . . . 29 Ram . | . . . . Kick . | . . . . Crush 8 | 1 7 . . Escape Stasis . | . . . . Rewire . | . . . . Trap . | . . . . Miscellaneous . | . . . . Route ------- -11/Scrapyard -10/Materials (discovered 6 exits: [*Mat x3] / [*Min x2] / [*Sub]) -10/Subcaves -8/Materials (discovered 1 exit: Fac) History --------- Turn | Location | Event 4 | -11/Scrapyard | Discovered new exit (range 15) 118 | -11/Scrapyard | Entered Materials 311 | -10/Materials | Build established: Mutant 311 | -10/Materials | Discovered new exit (range 10) 402 | -10/Materials | Discovered new exit (range 12) 798 | -10/Materials | Discovered new exit (range 13) 1010 | -10/Materials | Discovered new exit (range 14) 1116 | -10/Materials | Discovered new exit (range 15) 1458 | -10/Materials | Discovered new exit (range 12) 1820 | -10/Materials | Prayed at D.C.S.S. Altar Unit 1837 | -10/Materials | Entered Subcaves 1838 | -10/Subcaves | Approached by a straggling Scientist 1874 | -10/Subcaves | A swath of the cavern ceiling suddenly collapsed 2023 | -10/Subcaves | X0-1V1 sent hostile G-34 Mercenary (x3) 2047 | -10/Subcaves | Core integrity fell below 50% 2094 | -10/Subcaves | Lost 5 parts (1p2n1u1w) 2280 | -10/Subcaves | Shifting Twisted Machinery released Enh. Flamer 2285 | -10/Subcaves | Shifting Twisted Machinery released Sub. Beam Cannon 2417 | -10/Subcaves | Propulsion slot count permanently improved by X0-1V1 (+1) 2427 | -10/Subcaves | Learned location of Zion (-6) 2427 | -10/Subcaves | Met a Zionite searching for "candidates" 2502 | -10/Subcaves | Discovered new exit (range 14) 2526 | -10/Subcaves | Core integrity fell below 20% 2529 | -10/Subcaves | Entered Materials 2529 | -8/Materials | Evolved 4 slots: Propulsion x1, Utility x2, Weapon x1 2686 | -8/Materials | Energy capacity permanently improved by X0-1V1 (+200; -100 max core) 2697 | -8/Materials | X0-1V1 upgraded hostiles (x1) 2757 | -8/Materials | Identified exit to Factory 2757 | -8/Materials | X0-1V1 revealed exit location to -7/Factory 2963 | -8/Materials | Build established: Scavenger-Mutant 2971 | -8/Materials | X0-1V1 upgraded hostiles (x2) 3018 | -8/Materials | Core integrity fell below 50% 3043 | -8/Materials | Core integrity fell below 20% 3056 | -8/Materials | Lost 13 parts (1p9n1u2w) 3075 | -8/Materials | Destroyed by G-47 Trooper with Particle Gun Last Messages --------------- 03038_ X0-1V1 thinks you're pretty cool, for now (+42 heat dissipation). 03042_ H-71 Marshal shuts down. 03047_ X0-1V1 points here and there (13 item locations revealed). 03048_ K-01 Serf collects debris. 03049_ W-25 Informer sends out distress signal. 03051_ K-01 Serf collects debris. 03062_ G-50 Soldier suffers critical hit (Burn). 03063_ G-50 Soldier overheating. 03064_ G-50 Soldier heat damages core (-16). 03064_ G-50 Soldier overheating. 03064_ K-01 Serf collects debris. 03065_ G-50 Soldier overheating. 03066_ G-50 Soldier heat damages core (-17). 03066_ Lgt. Angular Momentum Engine melted. 03070_ R-06 Scavenger collects Adv. Heat Sink. 03073_ R-06 Scavenger collects Lgt. Angular Momentum Engine. 03075_ X0-1V1 giggles madly! Map ----- +----------------------------------------------------+ | ?????????????????????????????????????????????????? | | ?????????????????????????????????????????????????? | | ?????????????????????????????????????????????????? | | ?????????????????????????????????????????????????? | | ???????????????????????????????????????????+?????? | | ?????????????????????????????????????????????????? | | ????????????????????????#????##??????????????????? | | ????????????????????????# ??? #??????????????????? | | ????????????????????????# ??? #??????????????????? | | ????????????????????????# """ #??????????????????? | | ????????????????????????# """ #??????????????????? | | ????????????????????????# """ #??????????????????? | | ?????????????????######## """ #??????????????????? | | ???????????????!?? # #??????????????????? | | ??????????????????? # #??????????????????? | | ???????????????????? # #??!???????????????? | | ????????????????????# # #?!!???????????????? | | ????????????????????# # #??????????????????? | | ????????????????????# # #??????????????????? | | ????????????????????# ###/########+#### ???? | | ????????????????????# == ??? | | ????????????????????# %ru=%! ##?????????? | | ????????????????????# H% !*=% #??????????? | | ????????????????????# ###g######### #??????????? | | ????????????????????# # % [*#????????????????? | | ???????########?????# #@ % #????????????????? | | ???????# #?????# #% #???????????????? | | ???????# == #?????# # """ ##???????????????? | | ???????# == #?????# # """ #???????????!????? | | ???????# *! #?????# # """ #????????????????? | | ???????# !!! #?????# # #????????[[[?????? | | ???????# [!%!!#?????# # ! #????????[[[?????? | | ###########+######### # #????????[[??????? | | =% # ""T"" #????????????????? | | % [ # """"" #????????????????? | | ######?#?????????????????? | | = #????????????????????????? | | ####+#### ##????????????????????????? | | #?######## ###???????????????????????? | | """ #????????# == ""#???????????????????????? | | """ #????????# == ""####????????????????????? | | """ #????????# T" #???????????????????? | | #????????# ! "" #???????????????????? | | %""" #????????#"" %=""!%= #???????????????????? | | %""" #????????#"T ###!########## #????????? | | %""" #????????#"" ???????? | | #????????+ ???????? | | """ #????????# % ???????? | | """ #????????######### #+###########???????????? | | """ #????????????????# #=* #????????????????? | +----------------------------------------------------+ Best States ------------- Heat Dissipation 73 Energy Generation 18 Energy Capacity 360 Matter Stores 531 Matter Capacity 700 Sight Range 16 Terrain Scan Range 16 Terrain Scan Density 10 Armor Coverage 150 Evasion (%) 55 Recoil Reduction 2 Trap Extractor Capacity 4 Item Schematics ----------------- None Robot Schematics ------------------ None Fabricated ------------ Nothing Repaired ---------- Nothing Studied --------- None Alien Tech Used ----------------- None Achievements -------------- Chaos Is Inevitable Challenges ------------ None Game ------ Seed PointyDisruptionBallwheel Manual? 0 Play Time 00:18:22 Cumulative 319.1 hours Start 2026.09.22 @ 14:04:21 End 2026.09.22 @ 14:23:58 Sessions 1 Manual Loads 0 Difficulty Rogue Special Mode None Game No. 353 Rogue 353 Adventurer 0 Explorer 0 Win Type - Total 3 Types 3/0/0/0/0/0/0/0/0/0 Lore% 53 Gallery% 59 Achievement% 46 Wizard Run 0 Options --------- Layout 1 ASCII 0 Keyboard 0 Movement Numpad Keybinds 0 Fullscreen 2 Font 24/Smallcaps Map View 50x35 Zoom Use 0% Tactical HUD 1 Map Filters NONE Filters NONE Steam 1 RUN: 70af5159-cd17-4ebd-a83e-f82a73a1c193